Cogmind - Beta 12 @@@ ROGUE MODE // 2024.02.04 @ 01:12:48 Player: Treadwheel Result: Destroyed by Y-54 Guardian with Gatling Laser Performance ------------- Evolutions (3) 1500 Regions Visited (8) 1600 Robots Destroyed (61) 305 Value Destroyed (1904) 1904 Prototype IDs (29) 580 Alien Tech Used (0) 0 Bonus (1007) 1007 TOTAL SCORE: 6896 Bonus ------- Follower Combat Kills 7 Entered Garrisons 200 Used RIF Installer 500 Aligned with FarCom 300 Cogmind --------- Core Integrity 0/700 Matter 237/300 Energy 80/100 System Corruption 11% Temperature Danger (450) Movement Treading (160) Location -7/Garrison Parts ------- > --- POWER (1) -------- (None) > --- PROPULSION (5) --- Light Treads > --- UTILITY (4) ------ Medium Storage Unit Signal Interpreter > --- WEAPON (3) ------- (None) > --- INVENTORY (10) --- Cooled Ion Engine Light Nuclear Core Light Nuclear Core Light Nuclear Core Chronowheel Remote Datajack Peak State ------------ > --- POWER ------------ Improved Deuterium Engine > --- PROPULSION ------- Aluminum Leg Improved Aluminum Leg Carbon-fiber Leg Carbon-fiber Leg Titanium Leg > --- UTILITY ---------- Medium Storage Unit Signal Interpreter ECM Suite Hacking Suite > --- WEAPON ----------- Heavy Particle Cannon Gauss Rifle Gauss Cannon > --- INVENTORY -------- Cooled Ion Engine Nuclear Core Light Nuclear Core Chronowheel Autogun Flak Cannon Remote Datajack [Rating: 36] Favorites ----------- Power Cooled Ion Engine Engine Cooled Ion Engine Power Core Nuclear Core Propulsion Aluminum Leg Treads Light Treads Leg Aluminum Leg Hover Unit Cooled Airjet Flight Unit VTOL Module Utility Signal Interpreter Device Improved Heat Sink Storage Medium Storage Unit Processor Signal Interpreter Hackware Hacking Suite Weapon Heavy Particle Cannon Energy Gun Medium Laser Energy Cannon Heavy Particle Cannon Ballistic Gun Heavy Assault Rifle Ballistic Cannon Improved Light Cannon Special Weapon Plasma Flamer Build | -11 -10 -9 -9 -9 -8 -8 -7 -7 ------- Run | Jun Mat Mat Min Exi Min Mat Fac Gar Slots Evolved 6 | . . 2 . . . 2 2 . Power . | . . . . . . . . . Propulsion 3 | . . 1 . . . 1 1 . Utility 2 | . . 1 . . . 1 . . Weapon 1 | . . . . . . . 1 . Parts Attached 109 | 7 8 25 3 . 3 40 10 13 Power 11 | 1 1 3 . . . 3 2 1 Engine 9 | 1 1 3 . . . 3 1 . Core 2 | . . . . . . . 1 1 Reactor . | . . . . . . . . . Propulsion 35 | 2 . 8 . . 1 13 5 6 Treads 2 | . . 1 . . . . . 1 Leg 30 | 2 . 7 . . 1 13 3 4 Wheel . | . . . . . . . . . Hover 1 | . . . . . . . 1 . Flight 2 | . . . . . . . 1 1 Utility 27 | 2 2 8 . . . 13 1 1 Device 22 | 1 1 6 . . . 13 . 1 Storage 2 | 1 . 1 . . . . . . Processor 2 | . 1 1 . . . . . . Hackware 1 | . . . . . . . 1 . Protection . | . . . . . . . . . Artifact . | . . . . . . . . . Weapon 36 | 2 5 6 3 . 2 11 2 5 Energy Gun 9 | 2 4 3 . . . . . . Energy Cannon 5 | . . 1 1 . . 2 1 . Ballistic Gun 10 | . . . . . 1 6 . 3 Ballistic Cannon 5 | . 1 1 . . . . 1 2 Launcher . | . . . . . . . . . Special Weapon 7 | . . 1 2 . 1 3 . . Impact Weapon . | . . . . . . . . . Slashing Weapon . | . . . . . . . . . Piercing Weapon . | . . . . . . . . . Special Melee Weapon . | . . . . . . . . . Unidentified Prototypes 4 | . . 1 . . . 1 2 . Parts Lost 37 | . . 4 . . 1 10 . 22 Power 4 | . . 1 . . . 1 . 2 Propulsion 18 | . . 1 . . 1 6 . 10 Utility 4 | . . . . . . 1 . 3 Weapon 11 | . . 2 . . . 2 . 7 Highest Loss Streak 16 | . . 3 . . 1 4 . 16 To Critical Strikes . | . . . . . . . . . Average Slot Usage (%) 99 | . 99 99 100 100 99 97 100 96 Engine 10 | . 14 10 11 11 11 8 4 6 Leg 32 | . 28 29 33 33 32 34 38 34 Device 10 | . 3 11 11 11 11 17 12 6 Storage 10 | . 14 11 11 11 11 9 7 7 Processor 10 | . 10 11 11 11 11 9 7 7 Energy Gun 6 | . 21 16 . . . . . . Energy Cannon 4 | . . 1 10 11 7 3 7 6 Ballistic Gun 3 | . . . . . 10 10 8 7 Ballistic Cannon 3 | . 6 3 6 . . . 5 7 Special Weapon 3 | . . 1 5 11 3 4 . . Naked Turns . | . . . . . . . . . Heaviest Build 39 | 14 15 29 29 28 28 33 36 39 Greatest Support 60 | 20 20 30 30 30 30 50 60 58 Greatest Overweight (x) 5 | . . . . . 1 2 . 5 Average Overweight (x) . | . . . . . . . . . Largest Inventory Capacity 10 | 8 8 10 10 10 10 10 10 10 Average Capacity 9 | 7 8 9 10 10 10 10 10 10 Most Carried 10 | 7 8 10 10 10 10 10 10 10 Average Carried 8 | 3 7 8 9 9 9 9 9 9 Final Capacity 10 | 8 8 10 10 10 10 10 10 10 Final Carried 10 | 7 8 10 10 10 10 10 10 6 Class Distribution -------------------- 57% | Mutant 30% | Scavenger-Mutant 11% | Scavenger-Skirmisher Dominant Class ---------------- Mutant | -10/Materials Mutant | -9/Materials Mutant | -9/Mines Mutant | -9/Exiles Scavenger-Mutant | -8/Mines Scavenger-Mutant | -8/Materials Scavenger-Skirmisher | -7/Factory Scavenger-Skirmisher | -7/Garrison Resources | -11 -10 -9 -9 -9 -8 -8 -7 -7 ----------- Run | Jun Mat Mat Min Exi Min Mat Fac Gar Matter Collected 1790 | 236 190 299 70 . 33 625 90 247 Remotely . | . . . . . . . . . Salvage Created 1731 | 14 279 510 10 . 29 638 . 251 Parts 80 | 3 8 30 1 . 6 18 . 14 Haulers Intercepted . | . . . . . . . . . Recyclers Shooed 2 | . . 2 . . . . . . Parts Field Recycled . | . . . . . . . . . Retrieved Matter . | . . . . . . . . . Parts Self-Destructed . | . . . . . . . . . Prevented . | . . . . . . . . . Kills | -11 -10 -9 -9 -9 -8 -8 -7 -7 ------- Run | Jun Mat Mat Min Exi Min Mat Fac Gar Combat Hostiles Destroyed 54 | . 9 14 3 . 4 13 . 11 Guns 25 | . 6 10 . . 1 6 . 2 Cannons 24 | . 3 4 3 . 3 2 . 9 AOE 1 | . . . . . . 1 . . Classes Destroyed 9 | 1 2 4 . . . 2 . . Worker 2 | . . . . . . 2 . . Tunneler 1 | 1 . . . . . . . . Recycler 2 | . . 1 . . . 1 . . Watcher 2 | . . 2 . . . . . . Swarmer 20 | . 3 2 3 . 4 . . 8 Grunt 22 | . 6 7 . . . 7 . 2 Brawler 3 | . . 1 . . . 1 . 1 Sentry 6 | . . 4 . . . 2 . . Hunter 3 | . . . . . . 3 . . Best Kill Streak 5 | 1 3 5 3 . 3 4 . 4 Combat Bots Only 5 | . 3 5 3 . 3 3 . 4 Max Kills in Single Turn 2 | 1 1 1 1 . 1 2 . 2 Gunslinging . | . . . . . . . . . Exploded 1 | . . . . . . 1 . . Melee . | . . . . . . . . . Uniques/NPCs Destroyed . | . . . . . . . . . Combat | -11 -10 -9 -9 -9 -8 -8 -7 -7 -------- Run | Jun Mat Mat Min Exi Min Mat Fac Gar Damage Taken 5659 | . 571 859 74 . 117 1411 . 2627 Core 1248 | . 125 102 13 . 18 281 . 709 Absorbed by Shields 304 | . . . . . . 304 . . Regen/Repaired (Parts) 161 | . . . . . . 161 . . Core Remaining (%) 66 | 100 50 . . . 66 48 . . Volleys Fired 175 | 1 36 51 5 . 7 51 . 24 Largest 3 | 2 2 2 2 . 2 2 . 3 Hottest 151 | 90 100 150 139 . 123 123 . 151 Shots Fired 372 | 2 72 102 10 . 14 102 . 70 Gun 230 | 2 53 79 . . 7 67 . 22 Cannon 104 | . 19 20 5 . . 12 . 48 Launcher . | . . . . . . . . . Special 38 | . . 3 5 . 7 23 . . Kinetic 166 | . 19 19 5 . 7 67 . 49 Thermal 195 | 2 53 83 5 . 7 24 . 21 Explosive . | . . . . . . . . . Electromagnetic 11 | . . . . . . 11 . . Robot Hit Streak 13 | 1 11 13 2 . 5 8 . 5 Robot Miss Streak 10 | 1 4 10 1 . 2 4 . 5 Penetration Max . | . . . . . . . . . Secondary Targets . | . . . . . . . . . Shots Hit Robots 244 | 1 42 78 6 . 7 73 . 37 Core Hits 148 | 1 14 70 3 . 4 36 . 20 Critical Kills 1 | . . . . . . 1 . . Critical Parts Destroyed . | . . . . . . . . . Critical Strikes 10 | . 2 1 1 . 1 3 . 2 Burn 7 | . 2 1 1 . 1 2 . . Destroy 1 | . . . . . . 1 . . Blast 2 | . . . . . . . . 2 Melee Attacks . | . . . . . . . . . Impact . | . . . . . . . . . Slashing . | . . . . . . . . . Piercing . | . . . . . . . . . Sneak Attacks . | . . . . . . . . . Combat Hostiles . | . . . . . . . . . Follow-up Attacks . | . . . . . . . . . Damage Inflicted 4213 | 10 580 1187 121 . 95 1273 . 947 Guns 2216 | 10 384 923 . . 44 696 . 159 Cannons 1478 | . 196 192 65 . . 237 . 788 Explosions 87 | . . . . . . 87 . . Melee . | . . . . . . . . . Ramming 1 | . . . . . . 1 . . Kinetic 1815 | . 196 192 65 . 44 696 . 622 Thermal 2185 | 10 384 995 56 . 51 364 . 325 Explosive . | . . . . . . . . . Electromagnetic 212 | . . . . . . 212 . . Impact . | . . . . . . . . . Slashing . | . . . . . . . . . Piercing . | . . . . . . . . . Highest Corruption 11 | . . 1 1 1 1 . . 11 Average Corruption 1 | . . 1 1 1 1 . . 8 Corruption Purged . | . . . . . . . . . Corruption Blocked . | . . . . . . . . . Effects 20 | . . 5 5 7 3 . . . Message Errors 4 | . . 2 1 1 . . . . Matter Fused 6 | . . 2 1 2 1 . . . Heat Flow Errors 2 | . . . . 1 1 . . . Energy Discharges 5 | . . 1 2 2 . . . . Data Loss (minor) 3 | . . . 1 1 1 . . . Overload Shots . | . . . . . . . . . Overflow Damage 38 | . 11 . . . . 15 . 12 Projectiles 23 | . 11 . . . . . . 12 Explosions 15 | . . . . . . 15 . . Melee . | . . . . . . . . . Knockbacks 17 | . 4 . 1 . . . . 12 Impact . | . . . . . . . . . Kinetic 16 | . 3 . 1 . . . . 12 Secondary 1 | . 1 . . . . . . . Self-Inflicted Damage 34 | . . . . . . 34 . . Shots 1 | . . . . . . 1 . . Rammed . | . . . . . . . . . Targets Rammed 2 | . . 1 . . . 1 . . Kicked 2 | . . 1 . . . 1 . . Crushed . | . . . . . . . . . Highest Temperature 542 | 30 362 274 45 228 106 72 . 542 Average Temperature 125 | 18 149 71 21 117 32 17 . 243 Received Heat Transfer 1670 | . 210 321 . . . 503 . 636 Effects 9 | . 2 . . . . . . 7 Shutdowns 3 | . 1 . . . . . . 2 Energy Bleed 1 | . . . . . . . . 1 Matter Decay 1 | . . . . . . . . 1 Short Circuit 2 | . . . . . . . . 2 Damage (minor) 1 | . 1 . . . . . . . Damage (core) 1 | . . . . . . . . 1 Siege Activations . | . . . . . . . . . Robots Corrupted . | . . . . . . . . . Combat Hostiles . | . . . . . . . . . Parts Fried 2 | . . . . . . 2 . . Impact Corruptions . | . . . . . . . . . Robots Melted 3 | . . . . . . 3 . . Combat Hostiles 3 | . . . . . . 3 . . Parts Melted 10 | . 2 1 1 . 1 5 . . Heat Transferred 6622 | 25 1295 1834 480 . 480 2027 . 481 Parts Sabotaged . | . . . . . . . . . Parts Stolen . | . . . . . . . . . Parts Stripped . | . . . . . . . . . Power Chain Reactions 1 | . . . . . . 1 . . Missiles Intercepted . | . . . . . . . . . Alert | -11 -10 -9 -9 -9 -8 -8 -7 -7 ------- Run | Jun Mat Mat Min Exi Min Mat Fac Gar Peak Influence 290 | 5 108 290 182 . 120 235 79 262 Initial 112 | . 3 29 112 . . 7 55 55 Average 71 | 1 46 92 82 . 9 86 62 101 Maximum Alert Level 1 | . . 1 . . . 1 . 1 Low Security (%) 94 | 100 100 82 100 . 100 94 100 92 Level 1 5 | . . 17 . . . 5 . 7 Level 2 . | . . . . . . . . . Level 3 . | . . . . . . . . . Level 4 . | . . . . . . . . . Level 5 . | . . . . . . . . . High Security . | . . . . . . . . . Max Security . | . . . . . . . . . Squads Dispatched 4 | . 1 2 . . . 1 . . Investigation 1 | . . . . . . 1 . . Extermination . | . . . . . . . . . Reinforcement 3 | . 1 2 . . . . . . Assault . | . . . . . . . . . Garrison . | . . . . . . . . . Intercept . | . . . . . . . . . Searches Triggered . | . . . . . . . . . Construction Impeded . | . . . . . . . . . Haulers Reinforced . | . . . . . . . . . Active Scanning Responses . | . . . . . . . . . Cargo Convoy Interrupts . | . . . . . . . . . Stealth | -11 -10 -9 -9 -9 -8 -8 -7 -7 --------- Run | Jun Mat Mat Min Exi Min Mat Fac Gar Distress Signals 7 | . 1 2 . . . 4 . . Communications Jammed . | . . . . . . . . . Distress Signals . | . . . . . . . . . Times Spotted 100 | . 15 27 6 . 7 28 . 17 Peak Tracking Total 7 | . 4 5 3 . 3 7 . 6 Tactical Retreats 7 | . 1 2 . . 2 1 . 1 Traps | -11 -10 -9 -9 -9 -8 -8 -7 -7 ------- Run | Jun Mat Mat Min Exi Min Mat Fac Gar Traps Triggered 7 | . 1 1 . . . 5 . . Indirectly . | . . . . . . . . . Trap Hack Attempts . | . . . . . . . . . Triggered . | . . . . . . . . . Disarmed . | . . . . . . . . . Reprogrammed . | . . . . . . . . . Reused . | . . . . . . . . . Traps Extracted . | . . . . . . . . . Installed . | . . . . . . . . . Triggered . | . . . . . . . . . Machines | -11 -10 -9 -9 -9 -8 -8 -7 -7 ---------- Run | Jun Mat Mat Min Exi Min Mat Fac Gar Machines Disabled 5 | . . . . . . 3 . 2 Max in Single Turn 1 | . . . . . . 1 . 1 Machines Repaired . | . . . . . . . . . Machines Sabotaged . | . . . . . . . . . Overloaded Fab Kills . | . . . . . . . . . Hacking | -11 -10 -9 -9 -9 -8 -8 -7 -7 --------- Run | Jun Mat Mat Min Exi Min Mat Fac Gar Machines Accessed 21 | . 2 7 . 2 . 6 3 1 Terminals 12 | . 2 5 . . . 3 1 1 Fabricators . | . . . . . . . . . Repair Stations 3 | . . . . . . 2 1 . Recycling Units 2 | . . 2 . . . . . . Scanalyzers 1 | . . . . . . 1 . . Garrison Access 1 | . . . . . . . 1 . Total Hacks 79 | . 6 26 . 10 . 29 6 2 Successful 45 | . 3 8 . 10 . 20 3 1 Failed 34 | . 3 18 . . . 9 3 1 Catastrophic 4 | . 2 2 . . . . . . Database Lockouts . | . . . . . . . . . Manual 9 | . . 6 . 2 . 1 . . Terminals 45 | . 6 21 . . . 14 2 2 Fabricators . | . . . . . . . . . Repair Stations 14 | . . . . . . 12 2 . Recycling Units 5 | . . 5 . . . . . . Scanalyzers 3 | . . . . . . 3 . . Garrison Access 2 | . . . . . . . 2 . Terminal Hacks 33 | . 3 6 . 10 . 12 1 1 Record 22 | . 3 3 . 9 . 6 1 . Prototype ID Bank 1 | . . . . . . 1 . . Branch Access Points 1 | . . . . . . 1 . . Alert Level 1 | . . 1 . . . . . . Unreport Threat 2 | . . 2 . . . . . . Dispatch Records 1 | . . . . . . 1 . . Maintenance Status 1 | . . . . . . 1 . . Investigation Status 1 | . . . . . . 1 . . Zone Layout 1 | . . . . . . 1 . . Garrison Registry 1 | . . . . . . . . 1 EX-Prototype ID Bank 1 | . . . . 1 . . . . Fabricator Hacks . | . . . . . . . . . Repair Station Hacks 7 | . . . . . . 6 1 . Scan Component 4 | . . . . . . 3 1 . Repair 3 | . . . . . . 3 . . Recycling Unit Hacks 2 | . . 2 . . . . . . Retrieve Matter 1 | . . 1 . . . . . . Retrieve Components 1 | . . 1 . . . . . . Scanalyzer 2 | . . . . . . 2 . . Insert Component 1 | . . . . . . 1 . . Analyze 1 | . . . . . . 1 . . Garrison Access Hacks 1 | . . . . . . . 1 . Unlock Access 1 | . . . . . . . 1 . Unauthorized Hacks . | . . . . . . . . . Terminals . | . . . . . . . . . Fabricators . | . . . . . . . . . Repair Stations . | . . . . . . . . . Recycling Units . | . . . . . . . . . Scanalyzers . | . . . . . . . . . Garrison Access . | . . . . . . . . . Data Cores Recovered . | . . . . . . . . . Used . | . . . . . . . . . Hacking Detections 17 | . 2 6 . . . 6 3 . Full Trace Events 1 | . . . . . . 1 . . Feedback Events . | . . . . . . . . . Feedback Blocked . | . . . . . . . . . Robot Schematics Acquired . | . . . . . . . . . Robots Built . | . . . . . . . . . Authchips . | . . . . . . . . . Time . | . . . . . . . . . Total Robot Build Rating . | . . . . . . . . . Part Schematics Acquired 1 | . . . . . . 1 . . Parts Built . | . . . . . . . . . Authchips . | . . . . . . . . . Time . | . . . . . . . . . Total Part Build Rating . | . . . . . . . . . Parts Repaired 3 | . . . . . . 3 . . Time 155 | . . . . . . 155 . . Parts Recycled . | . . . . . . . . . Recycled Matter . | . . . . . . . . . Retrieved Matter 45 | . . 45 . . . . . . Retrieved Components 10 | . . 10 . . . . . . Parts Scanalyzed 1 | . . . . . . 1 . . Part Schematics Acquired 1 | . . . . . . 1 . . Parts Damaged . | . . . . . . . . . Bothacking | -11 -10 -9 -9 -9 -8 -8 -7 -7 ------------ Run | Jun Mat Mat Min Exi Min Mat Fac Gar Used RIF Installer 1 | . . . . . . . . 1 Robots Hacked . | . . . . . . . . . Non-combat . | . . . . . . . . . Combat . | . . . . . . . . . Robot Hacks Applied . | . . . . . . . . . Relay Couplers Released . | . . . . . . . . . Fabnet Peak Effective % . | . . . . . . . . . Robots Rewired 1 | . . . . . . 1 . . Allies Hacked . | . . . . . . . . . Hacks Repelled . | . . . . . . . . . Allies | -11 -10 -9 -9 -9 -8 -8 -7 -7 -------- Run | Jun Mat Mat Min Exi Min Mat Fac Gar Total Allies 2 | . . . 1 . . 1 . . Largest Group 1 | . . . 1 . . 1 . . Highest-Rated Group 31 | . . . 31 . . 16 . . Highest-Rated Ally 31 | . . . 31 . . 16 . . Total Orders . | . . . . . . . . . Ally Attacks 8 | . . . 4 . . 4 . . Total Damage 87 | . . . 22 . . 65 . . Kills 1 | . . . 1 . . . . . Allies Corrupted . | . . . . . . . . . Allies Melted . | . . . . . . . . . Intel | -11 -10 -9 -9 -9 -8 -8 -7 -7 ------- Run | Jun Mat Mat Min Exi Min Mat Fac Gar Robot Analysis Total . | . . . . . . . . . Derelict Logs Recovered 1 | . . . 1 . . . . . Drone Launches . | . . . . . . . . . Drone Recoveries . | . . . . . . . . . Exploration | -11 -10 -9 -9 -9 -8 -8 -7 -7 ------------- Run | Jun Mat Mat Min Exi Min Mat Fac Gar Turns Passed 6204 | 88 913 1199 713 818 502 1226 279 466 Spaces Moved 3995 | 62 622 691 559 680 382 613 209 177 Core 10 | 9 . . . . . . . 1 Treads 157 | . . 157 . . . . . . Legs 3827 | 53 622 534 559 680 382 613 209 175 Wheels . | . . . . . . . . . Hover . | . . . . . . . . . Flight 1 | . . . . . . . . 1 Fastest Speed 50 | 50 120 120 120 120 120 120 120 120 Average Speed 121 | 109 120 129 120 120 120 121 120 123 Slowest Speed 435 | 120 120 160 120 120 190 260 120 435 Overloaded Moves . | . . . . . . . . . Propulsion Burnouts . | . . . . . . . . . Robots Hopped . | . . . . . . . . . Cave-ins Triggered . | . . . . . . . . . Exploration Rate (%) 50 | 3 56 54 99 93 69 47 5 26 Regions Visited 8 Branch Regions 3 Pre-discovered Areas . | . . . . . . . . . Known Exits Taken 7 | . 1 1 1 1 1 1 1 . Unknown Exits Taken 1 | 1 . . . . . . . . Scrap Searched 2 | . . . 1 . 1 . . . Spaces Dug . | . . . . . . . . . Terrain Destroyed 3 | . . 1 . . . 2 . . Melee . | . . . . . . . . . Projectile 1 | . . 1 . . . . . . AOE 2 | . . . . . . 2 . . Terrain Rammed . | . . . . . . . . . Walls Destroyed . | . . . . . . . . . Machines Disabled . | . . . . . . . . . Actions | -11 -10 -9 -9 -9 -8 -8 -7 -7 --------- Run | Jun Mat Mat Min Exi Min Mat Fac Gar Total 4955 | 76 721 892 587 682 406 983 237 371 Wait 555 | . 37 92 19 . 14 236 6 151 Move 3987 | 61 621 690 558 679 381 612 208 177 Hop . | . . . . . . . . . Pick Up 62 | 7 6 15 1 1 1 20 6 5 Fast Attach 31 | 7 2 5 . . . 12 2 3 Attach 33 | . 1 6 . . 1 13 3 9 Detach 4 | . 2 . . . . 1 1 . Swap 45 | . 5 14 3 . 2 15 5 1 Drop 46 | . 11 18 1 1 . 9 6 . Fire 175 | 1 36 51 5 . 7 51 . 24 Melee . | . . . . . . . . . Ram . | . . . . . . . . . Kick 2 | . . 1 . . . 1 . . Crush . | . . . . . . . . . Escape Stasis . | . . . . . . . . . Rewire 15 | . . . . 1 . 13 . 1 Trap . | . . . . . . . . . Miscellaneous . | . . . . . . . . . Route ------- -11/Junkyard -10/Materials (discovered 2 exits: *Mat / *Min) -9/Materials (discovered 2 exits: *Mat / *Min) -9/Mines (discovered 3 exits: *Mat x2 / *Exi) -9/Exiles (discovered 2 exits: *Min x2) -8/Mines -8/Materials (discovered 2 exits: *Fac x2) -7/Factory -7/Garrison (discovered 3 exits: [Sto x3]) History --------- Turn | Location | Event 7 | -11/Junkyard | Discovered new exit (range 14) 89 | -11/Junkyard | Entered Materials 170 | -10/Materials | Discovered new exit (range 12) 251 | -10/Materials | Discovered new exit (range 10) 337 | -10/Materials | Build established: Mutant 791 | -10/Materials | Identified exit to Mines 825 | -10/Materials | Identified exit to Materials 1002 | -10/Materials | Entered another Materials area 1002 | -9/Materials | Evolved 2 slots: Propulsion x1, Utility x1 1112 | -9/Materials | Lost 3 parts (1p1n1w) 1486 | -9/Materials | Discovered new exit (range 15) 1544 | -9/Materials | Identified exit to Materials 1697 | -9/Materials | Discovered new exit (range 16) 1811 | -9/Materials | Identified exit to Mines 2201 | -9/Materials | Entered Mines 2221 | -9/Mines | Found a hidden stash of uninstalled traps 2449 | -9/Mines | A weapon hastily lodged in a ceiling crevice suddenly fell to the ground 2500 | -9/Mines | Discovered exit to Materials (range 11) 2546 | -9/Mines | Received a Mining Laser from a helpful Derelict 2717 | -9/Mines | Learned 4 Materials zone layouts 2743 | -9/Mines | Discovered exit to Materials (range 5) 2908 | -9/Mines | Deemed a non-threat by the Exiles lab entrance 2909 | -9/Mines | Discovered new exit (range 5) 2912 | -9/Mines | Identified exit to Exiles 2914 | -9/Mines | Entered Exiles 2934 | -9/Exiles | Discovered new exit (range 15) 2949 | -9/Exiles | Identified exit to Mines 2974 | -9/Exiles | Met 8R-AWN 2992 | -9/Exiles | Met EX-HEX 3081 | -9/Exiles | Met EX-DEC 3109 | -9/Exiles | Met EX-BIN 3223 | -9/Exiles | Aligned with FarCom system 3224 | -9/Exiles | Given EX-Vault access code 3257 | -9/Exiles | Opened EX-Vault 3269 | -9/Exiles | Found Chronowheel 3296 | -9/Exiles | Warned to stay clear of 0b10 Research branches 3400 | -9/Exiles | Visited The Gauntlet 3579 | -9/Exiles | Discovered exit to Mines (range 14) 3732 | -9/Exiles | Left Exiles lab with Chronowheel 3732 | -9/Exiles | Entered Mines 4045 | -8/Mines | Build established: Scavenger-Mutant 4171 | -8/Mines | Discovered exit to Materials (range 6) 4234 | -8/Mines | Entered Materials 4234 | -8/Materials | Evolved 2 slots: Propulsion x1, Utility x1 4235 | -8/Materials | Identified exit to Factory 4307 | -8/Materials | Repaired Cld. Ion Engine 4733 | -8/Materials | Discovered exit to Factory (range 14) 5070 | -8/Materials | Lost 4 parts (1p2n1w) 5184 | -8/Materials | Lost 3 parts (2n1u) 5253 | -8/Materials | Repaired Corrupted Carbon-fiber Leg 5271 | -8/Materials | Core integrity fell below 50% 5305 | -8/Materials | Repaired Cld. Ion Engine 5460 | -8/Materials | Entered Factory 5460 | -7/Factory | Evolved 2 slots: Propulsion x1, Weapon x1 5738 | -7/Factory | Identified exit to Garrison 5739 | -7/Factory | Entered Garrison 5758 | -7/Garrison | Build established: Scavenger-Skirmisher 5762 | -7/Garrison | Installed Relay Interface Framework 5792 | -7/Garrison | Triggered checkpoint 5804 | -7/Garrison | Discovered new exit (range 64) 5804 | -7/Garrison | Discovered new exit (range 68) 5804 | -7/Garrison | Discovered new exit (range 35) 6096 | -7/Garrison | Lost 4 parts (2n1u1w) 6102 | -7/Garrison | Triggered checkpoint 6160 | -7/Garrison | Triggered checkpoint 6172 | -7/Garrison | Triggered checkpoint 6175 | -7/Garrison | Triggered checkpoint 6188 | -7/Garrison | System corruption reached 10% 6195 | -7/Garrison | Core integrity fell below 50% 6199 | -7/Garrison | Core integrity fell below 20% 6205 | -7/Garrison | Destroyed by Y-54 Guardian with Gatling Laser Last Messages --------------- 06189_ Titanium Leg destroyed. 06191_ B-48 Gladiator destroyed. 06191_ Gauss Cannon destroyed. 06192_ Imp. Deuterium Engine destroyed. 06192_ Flak Cannon destroyed. 06194_ Signal Interpreter broken. 06194_ Overheating: Short circuit. 06194_ Aluminum Leg destroyed. 06197_ Overheating: Core damaged (-112). 06197_ Acquired 39 matter. 06198_ VTOL Module destroyed. 06199_ Autogun broken. 06199_ Overheating: Short circuit. 06201_ Power failure, Nuclear Core shutdown. 06201_ Nuclear Core destroyed. 06202_ Overheating: Energy bleed (-14). 06202_ Autogun destroyed. 06204_ Hacking Suite destroyed. 06204_ Broken Autogun destroyed. 06205_ Acquired Lgt. Treads. Map ----- +----------------------------------------------------+ | ?# ######++######??????????????# ## | | ?# ##### #??????????????# ## ###### | | ?# #???# #??????????????# ## #????? | | ?# #???#+## ###+##### #??????????????# ## #????? | | ?# ##### ## #?# #???# #??????????????# ## #????? | | ## + ## #?# #???# #???????######## ## #????? | | " ######## #?# #???# #???????# + #????? | | " #??????# ### #???# #???????# ######### #?#### | | " #????### # #???# #######?# #???????# #?# | | ## #????# " # #???# ## #?# #???????# #?# | | ?# ###??# #T # #??## ## ###+##??????# #?# | | ?#^#"#??####### #### ######## ### | | ?#^ "#????????# + ^^ + | | ?# "#????????###### ^^^ ^ ### | | ?# "#?????????????# ## ## ###########?# | | ?# #"#???????????### ## Y ## ###?????????# | | ?#####???????????# Y #?????????# | | ?????????????????# #?????????#### | | ?????????????????# #????????????? | | ?????????????????# * =#????????????? | | ?????????????????### ## ## ###????????????? | | ???????????????????#^^^## ## [##########?????? | | ???????????????????#^^gg % ####### | | ???????????????????# %%% [+ | | ???????????????????# [ g ####+## ####### | | ???????????????????## ##@ * ## ##??# ##= #?????? | | ????????????????????# ##CCC%## #???# ## #?????? | | ????????????????????# ######## #???# ## #?????? | | ????????????????????# #??????# ##### ## #?????? | | ????????????????????# #??????# + ## ####### | | ????????????????????# #??????# ##### + " + | | ????????????????????# #??????# #???#### ##### # | | ##################### #??????# ######## #???# # | | #??????# ##### # | | #??????# # | | ####+##############++#??????########### ####### | | #??# #????????????# #????????????????# ####### | | #??# #????????????# #????????????????# #^""""# | | #??# #????????????# #????????????????# "# | | #??# #????????????# #????????????????# # """"# | | #??# #????????????# #????????????????# ####### | | #??# #????????????# #????????????????# ####### | | #??# #????????????# #????????????????# | | #### #????????????# #????????????????# | | ## #????????????# #????????????????########## | | < + #????????????# #?????????????????????????? | | ####????????????# #?????????????????????????? | | ###???????????????# #?????????????????????????? | | #?????????????????# #?????????????????????????? | | #?????????????????# #?????????????????????????? | +----------------------------------------------------+ Best States ------------- Heat Dissipation 48 Energy Generation 23 Energy Capacity 290 Matter Stores 300 Matter Capacity 300 Sight Range 16 Robot Scan Range 14 Terrain Scan Range 16 Terrain Scan Density 10 ECM Strength 1 Evasion (%) 55 Recoil Reduction 1 Offensive Hacking 10 Item Schematics ----------------- Plasma Flamer | -8/Materials | Scanalyzed Robot Schematics ------------------ None Fabricated ------------ Nothing Alien Tech Used ----------------- None Achievements -------------- Everything Is Under Control Challenges ------------ None Game ------ Seed SiegeCoolingRail Manual? 0 Play Time 01:29:01 Cumulative 14.2 hours Start 2024.02.03 @ 21:17:27 End 2024.02.04 @ 01:12:48 Sessions 3 Manual Loads 0 Difficulty Rogue Special Mode None Game No. 7 Rogue 7 Adventurer 0 Explorer 0 Win Type - Total 0 Types 0/0/0/0/0/0/0/0/0 Lore% 19 Gallery% 18 Achievement% 16 Wizard Run 0 Options --------- ASCII 0 Keyboard 0 Movement Numpad Keybinds 0 Fullscreen 1 Font 18/SmallcapsGlow Map View 76x50 Tactical HUD 1 Map Filters NONE Filters NONE Steam 1 RUN: f16f7d12-2152-4d54-9684-729b2dfbf27e